[Event "RUS-ch Women Blitz 2019"]
[Site "Sochi"]
[Date "2019.10.17"]
[Round "14.1"]
[White "Bodnaruk, Anastasia"]
[Black "Belenkaya, Dina"]
[Result "1-0"]
[ECO "B01"]
[WhiteElo "2419"]
[BlackElo "2300"]
[Annotator "NA"]
[PlyCount "163"]
[EventDate "2019.10.17"]
[EventType "swiss"]
[EventCountry "RUS"]
[SourceTitle "playchess.com"]
[Source "ChessBase"]
[SourceQuality "1"]
[TimeControl "180+2"]

1. e4 {[%emt 0:00:00]} d5 {[%emt 0:00:00]} 2. exd5 {[%emt 0:00:00]} Qxd5 {[%emt 0:00:00]} 3. Nc3 {[%emt 0:00:03]} Qa5 {[%emt 0:00:00]} 4. d4 {[%emt 0:00:00]} c6 {[%emt 0:00:02]} 5. Nf3 {[%emt 0:00:04]} Bf5 {[%emt 0:00:01]} 6. Bc4 {[%emt 0:00:11]} e6 {[%emt 0:00:01]} 7. O-O {[%emt 0:00:02]} Nf6 {[%emt 0:00:05]} 8. Qe2 {[%emt 0:00:03]} Be7 {[%emt 0:00:02]} 9. Ne5 {[%emt 0:00:11]} Nbd7 {[%emt 0:00:21]} 10. Bb3 {[%emt 0:00:13]} O-O {[%emt 0:00:28]} 11. Bf4 {[%emt 0:00:01]} Nxe5 {[%emt 0:00:03]} 12. Bxe5 {[%emt 0:00:11]} Rad8 {[%emt 0:00:26]} 13. Rad1 {[%emt 0:00:02]} Bg6 {[%emt 0:00:06]} 14. Kh1 {[%emt 0:00:08]} Rfe8 {[%emt 0:00:06]} 15. f3 {[%emt 0:00:06]} Nd7 {[%emt 0:00:04]} 16. Bg3 {[%emt 0:00:05]} Nf6 {[%emt 0:00:11]} 17. Rfe1 {[%emt 0:00:14]} Bd6 {[%emt 0:00:01]} 18. Bxd6 {[%emt 0:00:17]} Rxd6 {[%emt 0:00:02]} 19. Qe5 {[%emt 0:00:01]} Qd8 {[%emt 0:00:08]} 20. Rd2 {[%emt 0:00:20]} Qd7 {[%emt 0:00:15]} 21. Red1 {[%emt 0:00:03]} Rd8 {[%emt 0:00:02]} 22. Qe3 {[%emt 0:00:11]} Qc7 {[%emt 0:00:07]} 23. Ne2 {[%emt 0:00:08]} Nd5 {[%emt 0:00:07]} 24. Bxd5 cxd5 {[%emt 0:00:33]} 25. c3 {[%emt 0:00:06]} b5 {[%emt 0:00:06]} 26. Nf4 {[%emt 0:00:06]} a5 {[%emt 0:00:09]} 27. h4 {[%emt 0:00:01]} h6 {[%emt 0:00:10]} 28. g4 {[%emt 0:00:16]} Bh7 {[%emt 0:00:04]} 29. Rg2 {[%emt 0:00:02]} b4 {[%emt 0:00:02]} 30. g5 {[%emt 0:00:04]} hxg5 {[%emt 0:00:01]} 31. Rxg5 {[%emt 0:00:09]} f6 {[%emt 0:00:08]} 32. Nxe6 {[%emt 0:00:15]} Rxe6 {[%emt 0:00:07]} 33. Qxe6+ {[%emt 0:00:01]} Qf7 {[%emt 0:00:03]} 34. Qxf7+ {[%emt 0:00:07]} Kxf7 {[%emt 0:00:01]} 35. Rg2 {[%emt 0:00:04]} bxc3 {[%emt 0:00:01]} 36. bxc3 {[%emt 0:00:00]} Rc8 {[%emt 0:00:01]} 37. Rc1 {[%emt 0:00:01]} Rb8 {[%emt 0:00:04]} 38. Re2 {[%emt 0:00:02]} Bd3 {[%emt 0:00:01]} 39. Rd2 {[%emt 0:00:02]} Bc4 {[%emt 0:00:01]} 40. Kg2 {[%emt 0:00:02]} a4 {[%emt 0:00:01]} 41. f4 {[%emt 0:00:13]} a3 {[%emt 0:00:02]} 42. Re1 {[%emt 0:00:00]} Rb7 {[%emt 0:00:05]} 43. Kg3 {[%emt 0:00:01]} Kg6 {[%emt 0:00:03]} 44. Rf2 {[%emt 0:00:06]} Kf5 {[%emt 0:00:02]} 45. Kf3 {[%emt 0:00:05]} Bd3 {[%emt 0:00:03]} 46. Rd2 {[%emt 0:00:02]} Be4+ {[%emt 0:00:02]} 47. Kg3 {[%emt 0:00:01]} Bb1 {[%emt 0:00:02]} 48. Rde2 {[%emt 0:00:06]} Be4 {[%emt 0:00:01]} 49. Rd2 {[%emt 0:00:03]} Rb2 {[%emt 0:00:01]} 50. Ree2 {[%emt 0:00:02]} Rb1 {[%emt 0:00:01]} 51. Kf2 {[%emt 0:00:05]} Rh1 {[%emt 0:00:02]} 52. Re1 {[%emt 0:00:03]} Rh2+ {[%emt 0:00:02]} 53. Ke3 {[%emt 0:00:00]} Rh3+ {[%emt 0:00:01]} 54. Kf2 {[%emt 0:00:01]} Rh2+ {[%emt 0:00:03]} 55. Ke3 {[%emt 0:00:02]} Rh3+ {[%emt 0:00:03]} 56. Ke2 {[%emt 0:00:01]} Rxh4 {[%emt 0:00:01]} 57. Rg1 {[%emt 0:00:02]} Rxf4 {[%emt 0:00:05]} 58. Rxg7 {[%emt 0:00:02]} Rh4 {[%emt 0:00:01]} 59. Rg1 {[%emt 0:00:02]} Rh2+ {[%emt 0:00:01]} 60. Kd1 {[%emt 0:00:02]} Rh3 {[%emt 0:00:01]} 61. Rf2+ {[%emt 0:00:02]} Ke6 {[%emt 0:00:01]} 62. Kd2 {[%emt 0:00:05]} Rd3+ {[%emt 0:00:01]} 63. Ke2 {[%emt 0:00:01]} Rxc3 {[%emt 0:00:01]} 64. Rg8 {[%emt 0:00:02]} Rc2+ {[%emt 0:00:01]} 65. Kf1 {[%emt 0:00:01]} Rc1+ {[%emt 0:00:01]} 66. Ke2 {[%emt 0:00:01]} f5 {[%emt 0:00:05]} 67. Ra8 {[%emt 0:00:02]} Rc3 {[%emt 0:00:01]} 68. Ra6+ {[%emt 0:00:04]} Kd7 {[%emt 0:00:02]} 69. Kd2 {[%emt 0:00:03]} Rc2+ {[%emt 0:00:02]} 70. Ke3 {[%emt 0:00:01]} Rc3+ {[%emt 0:00:02]} 71. Kf4 {[%emt 0:00:01]} Kc7 {[%emt 0:00:04]} 72. Ke5 {[%emt 0:00:02]} Kb7 {[%emt 0:00:02]} 73. Ra4 {[%emt 0:00:01]} Kb6 {[%emt 0:00:03]} 74. Rh2 {[%emt 0:00:02]} Kb5 {[%emt 0:00:01]} 75. Ra7 {[%emt 0:00:01]} Kc4 {[%emt 0:00:02]} 76. Rc7+ {[%emt 0:00:04]} Kb4 {[%emt 0:00:03]} 77. Rb7+ {[%emt 0:00:04]} Kc4 {[%emt 0:00:01]} 78. Rc7+ {[%emt 0:00:02]} Kb4 {[%emt 0:00:00]} 79. Ra7 {[%emt 0:00:02]} Rc6 {[%emt 0:00:06]} 80. Rh3 {[%emt 0:00:03]} Rc2 {[%emt 0:00:05]} 81. Rb3+ {[%emt 0:00:02]} Kc4 {[%emt 0:00:02]} 82. Rc7# {[%emt 0:00:01]} 1-0

[Event "RUS-ch Women Blitz 2019"]
[Site "Sochi"]
[Date "2019.10.17"]
[Round "14.2"]
[White "Pogonina, Natalija"]
[Black "Tomilova, Elena"]
[Result "1/2-1/2"]
[ECO "A45"]
[WhiteElo "2479"]
[BlackElo "2345"]
[Annotator "ChessBase"]
[PlyCount "20"]
[EventDate "2019.10.17"]
[EventType "swiss"]
[EventCountry "RUS"]
[SourceTitle "playchess.com"]
[Source "ChessBase"]
[SourceQuality "1"]
[TimeControl "180+2"]

1. d4 {[%emt 0:00:00]} Nf6 {[%emt 0:00:00]} 2. g3 {[%emt 0:00:01]} d5 {[%emt 0:00:03]} 3. Bg2 {[%emt 0:00:01]} c6 {[%emt 0:00:04]} 4. Nf3 {[%emt 0:00:04]} Bf5 {[%emt 0:00:02]} 5. O-O {[%emt 0:00:02]} e6 {[%emt 0:00:01]} 6. b3 {[%emt 0:00:05]} h6 {[%emt 0:00:02]} 7. c4 {[%emt 0:00:02]} Nbd7 {[%emt 0:00:03]} 8. Nc3 {[%emt 0:00:07]} Bb4 {[%emt 0:00:10]} 9. Bb2 {[%emt 0:00:02]} O-O {[%emt 0:00:03]} 10. e3 {[%emt 0:00:05]} Ne4 {[%emt 0:00:06]} 1/2-1/2

[Event "RUS-ch Women Blitz 2019"]
[Site "Sochi"]
[Date "2019.10.17"]
[Round "14.3"]
[White "Garifullina, Leya"]
[Black "Sukhareva, Evgeniya"]
[Result "0-1"]
[ECO "B42"]
[WhiteElo "2330"]
[BlackElo "2122"]
[Annotator "NA"]
[PlyCount "56"]
[EventDate "2019.10.17"]
[EventType "swiss"]
[EventCountry "RUS"]
[SourceTitle "playchess.com"]
[Source "ChessBase"]
[SourceQuality "1"]
[TimeControl "180+2"]

1. e4 {[%emt 0:00:00]} c5 {[%emt 0:00:00]} 2. Nf3 {[%emt 0:00:00]} e6 {[%emt 0:00:00]} 3. d4 {[%emt 0:00:01]} cxd4 {[%emt 0:00:01]} 4. Nxd4 a6 5. Bd3 {[%emt 0:00:02]} Qc7 {[%emt 0:00:03]} 6. O-O {[%emt 0:00:07]} Nf6 {[%emt 0:00:03]} 7. Qe2 {[%emt 0:00:01]} d6 {[%emt 0:00:02]} 8. c4 {[%emt 0:00:00]} Be7 {[%emt 0:00:02]} 9. Nc3 {[%emt 0:00:01]} Nc6 {[%emt 0:00:01]} 10. Nxc6 {[%emt 0:00:06]} bxc6 {[%emt 0:00:02]} 11. f4 {[%emt 0:00:09]} Nd7 {[%emt 0:00:05]} 12. Bc2 {[%emt 0:00:05]} O-O {[%emt 0:00:09]} 13. Be3 {[%emt 0:00:02]} Rb8 {[%emt 0:00:08]} 14. Rab1 {[%emt 0:00:02]} Bf6 {[%emt 0:00:01]} 15. Qd2 {[%emt 0:00:14]} c5 {[%emt 0:00:14]} 16. b3 {[%emt 0:00:02]} Rd8 {[%emt 0:00:10]} 17. Ne2 {[%emt 0:00:03]} Bb7 {[%emt 0:00:04]} 18. Ng3 {[%emt 0:00:01]} g6 {[%emt 0:00:03]} 19. Qe2 {[%emt 0:00:07]} Nb6 {[%emt 0:00:12]} 20. f5 {[%emt 0:00:02]} exf5 {[%emt 0:00:04]} 21. exf5 {[%emt 0:00:03]} Re8 {[%emt 0:00:01]} 22. fxg6 {[%emt 0:00:04]} Rxe3 {[%emt 0:00:10]} 23. Qg4 {[%emt 0:00:38]} Rxg3 {[%emt 0:00:49]} 24. gxf7+ {[%emt 0:00:12]} Kh8 {[%emt 0:00:05]} 25. Qxg3 {[%emt 0:00:01]} Qxf7 {[%emt 0:00:07]} 26. Qxd6 {[%emt 0:00:26]} Rf8 {[%emt 0:01:09]} 27. Qxb6 {[%emt 0:00:16]} Bd4+ {[%emt 0:00:02]} 28. Kh1 {[%emt 0:00:01]} Qxf1+ {[%emt 0:00:02]} 0-1

[Event "RUS-ch Women Blitz 2019"]
[Site "Sochi"]
[Date "2019.10.17"]
[Round "14.4"]
[White "Murashova, Ekaterina"]
[Black "Charochkina, Daria"]
[Result "1-0"]
[ECO "B00"]
[WhiteElo "2248"]
[BlackElo "2355"]
[Annotator "NA"]
[PlyCount "67"]
[EventDate "2019.10.17"]
[EventType "swiss"]
[EventCountry "RUS"]
[SourceTitle "playchess.com"]
[Source "ChessBase"]
[SourceQuality "1"]
[TimeControl "180+2"]

1. e4 {[%emt 0:00:00]} d6 {[%emt 0:00:00]} 2. d4 {[%emt 0:00:01]} Nf6 {[%emt 0:00:00]} 3. f3 {[%emt 0:00:05]} c6 {[%emt 0:00:01]} 4. c4 {[%emt 0:00:04]} Nbd7 {[%emt 0:00:06]} 5. Ne2 {[%emt 0:00:13]} e5 {[%emt 0:00:01]} 6. Be3 {[%emt 0:00:02]} Be7 {[%emt 0:00:04]} 7. Nbc3 {[%emt 0:00:06]} O-O {[%emt 0:00:02]} 8. Qd2 {[%emt 0:00:02]} exd4 {[%emt 0:00:09]} 9. Nxd4 {[%emt 0:00:04]} Ne5 {[%emt 0:00:01]} 10. Be2 {[%emt 0:00:08]} Bd7 {[%emt 0:00:24]} 11. O-O {[%emt 0:00:03]} Qc7 {[%emt 0:00:01]} 12. Rfd1 {[%emt 0:00:04]} Rad8 {[%emt 0:00:02]} 13. Rac1 {[%emt 0:00:01]} Bc8 {[%emt 0:00:03]} 14. Bf1 {[%emt 0:00:01]} Rfe8 {[%emt 0:00:02]} 15. Qf2 {[%emt 0:00:02]} Bf8 {[%emt 0:00:15]} 16. Nc2 {[%emt 0:00:31]} b6 {[%emt 0:00:06]} 17. a4 {[%emt 0:00:03]} c5 {[%emt 0:00:09]} 18. Bg5 {[%emt 0:00:15]} Be6 {[%emt 0:00:30]} 19. Ne3 {[%emt 0:00:04]} Kh8 {[%emt 0:00:08]} 20. Bxf6 {[%emt 0:00:03]} gxf6 {[%emt 0:00:01]} 21. Ncd5 {[%emt 0:00:00]} Qc6 {[%emt 0:00:26]} 22. Nxf6 {[%emt 0:00:02]} Re7 {[%emt 0:00:01]} 23. Qh4 {[%emt 0:00:03]} h6 {[%emt 0:00:01]} 24. Ned5 {[%emt 0:00:07]} Rb7 {[%emt 0:00:24]} 25. f4 {[%emt 0:00:14]} Ng6 {[%emt 0:00:03]} 26. Qh5 {[%emt 0:00:01]} Bc8 {[%emt 0:00:11]} 27. Rc3 {[%emt 0:00:05]} Bg7 {[%emt 0:00:04]} 28. Rg3 {[%emt 0:00:09]} Qxa4 {[%emt 0:00:04]} 29. b3 {[%emt 0:00:20]} Qc6 {[%emt 0:00:08]} 30. Rxg6 {[%emt 0:00:10]} fxg6 {[%emt 0:00:04]} 31. Qxg6 {[%emt 0:00:01]} Bxf6 {[%emt 0:00:11]} 32. Qxf6+ {[%emt 0:00:01]} Rg7 {[%emt 0:00:01]} 33. Qxd8+ {[%emt 0:00:01]} Rg8 {[%emt 0:00:01]} 34. Qxg8+ {[%emt 0:00:04]} 1-0

[Event "RUS-ch Women Blitz 2019"]
[Site "Sochi"]
[Date "2019.10.17"]
[Round "14.5"]
[White "Chernyak, Viktoria"]
[Black "Maltsevskaya, Aleksandra"]
[Result "1-0"]
[ECO "E92"]
[WhiteElo "2284"]
[BlackElo "2333"]
[Annotator "NA"]
[PlyCount "128"]
[EventDate "2019.10.17"]
[EventType "swiss"]
[EventCountry "RUS"]
[SourceTitle "playchess.com"]
[Source "ChessBase"]
[SourceQuality "1"]
[TimeControl "180+2"]

1. c4 {[%emt 0:00:00]} Nf6 {[%emt 0:00:00]} 2. Nf3 {[%emt 0:00:00]} g6 {[%emt 0:00:00]} 3. Nc3 {[%emt 0:00:02]} Bg7 {[%emt 0:00:01]} 4. e4 {[%emt 0:00:01]} d6 {[%emt 0:00:01]} 5. d4 {[%emt 0:00:01]} O-O {[%emt 0:00:01]} 6. Be2 {[%emt 0:00:01]} e5 {[%emt 0:00:01]} 7. Be3 {[%emt 0:00:00]} Ng4 {[%emt 0:00:03]} 8. Bg5 {[%emt 0:00:01]} f6 {[%emt 0:00:01]} 9. Bc1 {[%emt 0:00:01]} Nc6 {[%emt 0:00:02]} 10. d5 {[%emt 0:00:01]} Ne7 {[%emt 0:00:01]} 11. h3 {[%emt 0:00:03]} Nh6 {[%emt 0:00:01]} 12. h4 {[%emt 0:00:01]} Nf7 {[%emt 0:00:27]} 13. h5 {[%emt 0:00:04]} g5 {[%emt 0:00:01]} 14. Be3 {[%emt 0:00:04]} Bh6 {[%emt 0:00:03]} 15. Nd2 {[%emt 0:00:31]} f5 {[%emt 0:00:03]} 16. f3 {[%emt 0:00:01]} g4 {[%emt 0:00:26]} 17. Bxh6 {[%emt 0:00:12]} Nxh6 {[%emt 0:00:00]} 18. Nf1 {[%emt 0:00:01]} Kh8 {[%emt 0:00:05]} 19. exf5 {[%emt 0:00:15]} gxf3 {[%emt 0:00:17]} 20. Bxf3 {[%emt 0:00:13]} Nhxf5 {[%emt 0:00:07]} 21. Be4 {[%emt 0:00:14]} Nd4 {[%emt 0:00:18]} 22. Qd2 {[%emt 0:00:01]} Ng8 {[%emt 0:00:03]} 23. O-O-O {[%emt 0:00:06]} a6 {[%emt 0:00:01]} 24. Nh2 {[%emt 0:00:51]} b5 {[%emt 0:00:07]} 25. Nf3 {[%emt 0:00:04]} b4 {[%emt 0:00:24]} 26. Ne2 {[%emt 0:00:09]} Nf6 {[%emt 0:00:10]} 27. Bb1 {[%emt 0:00:06]} Nxe2+ {[%emt 0:00:11]} 28. Qxe2 {[%emt 0:00:01]} Bg4 {[%emt 0:00:05]} 29. Qc2 {[%emt 0:00:11]} e4 {[%emt 0:00:03]} 30. Ng5 {[%emt 0:00:08]} Bf5 {[%emt 0:00:42]} 31. Rdf1 {[%emt 0:00:04]} Nxd5 {[%emt 0:00:09]} 32. Qd2 {[%emt 0:00:17]} e3 {[%emt 0:00:04]} 33. Qxd5 {[%emt 0:00:02]} Qxg5 {[%emt 0:00:01]} 34. Rxf5 {[%emt 0:00:04]} Qg7 {[%emt 0:00:05]} 35. Re1 {[%emt 0:00:06]} Rae8 {[%emt 0:00:03]} 36. Rg5 {[%emt 0:00:03]} Qf6 {[%emt 0:00:01]} 37. Rf5 {[%emt 0:00:02]} Qh4 {[%emt 0:00:01]} 38. Rxf8+ {[%emt 0:00:04]} Rxf8 {[%emt 0:00:01]} 39. Rxe3 {[%emt 0:00:04]} Rf1+ {[%emt 0:00:02]} 40. Kd2 {[%emt 0:00:01]} Rf2+ {[%emt 0:00:02]} 41. Re2 {[%emt 0:00:05]} Qf4+ {[%emt 0:00:01]} 42. Kd3 {[%emt 0:00:03]} c6 {[%emt 0:00:04]} 43. Qe4 {[%emt 0:00:03]} Qxe4+ {[%emt 0:00:03]} 44. Rxe4 {[%emt 0:00:02]} Rxb2 {[%emt 0:00:02]} 45. Re1 {[%emt 0:00:02]} a5 {[%emt 0:00:02]} 46. g4 {[%emt 0:00:02]} a4 {[%emt 0:00:01]} 47. Rc1 {[%emt 0:00:01]} b3 {[%emt 0:00:02]} 48. axb3 {[%emt 0:00:02]} Rxb3+ {[%emt 0:00:01]} 49. Kc2 {[%emt 0:00:03]} Rg3 {[%emt 0:00:01]} 50. Rd1 {[%emt 0:00:02]} Rxg4 {[%emt 0:00:02]} 51. Ba2 {[%emt 0:00:01]} Rg2+ {[%emt 0:00:04]} 52. Kb1 {[%emt 0:00:01]} a3 {[%emt 0:00:02]} 53. Rxd6 {[%emt 0:00:03]} Rb2+ {[%emt 0:00:01]} 54. Ka1 {[%emt 0:00:00]} Rc2 {[%emt 0:00:01]} 55. Rxc6 {[%emt 0:00:05]} Kg7 {[%emt 0:00:02]} 56. h6+ {[%emt 0:00:01]} Kf7 {[%emt 0:00:01]} 57. Bb1 {[%emt 0:00:01]} Rd2 {[%emt 0:00:01]} 58. Rc7+ {[%emt 0:00:02]} Kf6 {[%emt 0:00:02]} 59. Rxh7 {[%emt 0:00:02]} Ke5 {[%emt 0:00:02]} 60. Re7+ {[%emt 0:00:01]} Kd6 {[%emt 0:00:01]} 61. Ra7 {[%emt 0:00:03]} Kc5 {[%emt 0:00:05]} 62. h7 {[%emt 0:00:02]} Rh2 {[%emt 0:00:01]} 63. Rxa3 {[%emt 0:00:03]} Kxc4 {[%emt 0:00:01]} 64. Ra8 {[%emt 0:00:02]} Kd5 1-0

[Event "RUS-ch Women Blitz 2019"]
[Site "Sochi"]
[Date "2019.10.17"]
[Round "14.6"]
[White "Lysenko, Margarita"]
[Black "Voit, Daria"]
[Result "0-1"]
[ECO "E20"]
[WhiteElo "2243"]
[BlackElo "2336"]
[Annotator "NA"]
[PlyCount "70"]
[EventDate "2019.10.17"]
[EventType "swiss"]
[EventCountry "RUS"]
[SourceTitle "playchess.com"]
[Source "ChessBase"]
[SourceQuality "1"]
[TimeControl "180+2"]

1. d4 {[%emt 0:00:00]} Nf6 {[%emt 0:00:00]} 2. c4 {[%emt 0:00:00]} e6 {[%emt 0:00:00]} 3. Nc3 {[%emt 0:00:01]} Bb4 {[%emt 0:00:02]} 4. f3 {[%emt 0:00:01]} c5 {[%emt 0:00:05]} 5. d5 {[%emt 0:00:02]} O-O {[%emt 0:00:05]} 6. e4 {[%emt 0:00:04]} d6 {[%emt 0:00:11]} 7. Bd3 {[%emt 0:00:08]} b5 {[%emt 0:00:08]} 8. Nge2 {[%emt 0:00:41]} bxc4 {[%emt 0:00:07]} 9. Bxc4 {[%emt 0:00:02]} exd5 {[%emt 0:00:25]} 10. exd5 {[%emt 0:00:09]} Nbd7 {[%emt 0:00:11]} 11. Bg5 {[%emt 0:00:24]} h6 {[%emt 0:00:04]} 12. Bh4 {[%emt 0:00:03]} Ne5 {[%emt 0:00:06]} 13. Bb3 {[%emt 0:00:06]} Ba6 {[%emt 0:00:13]} 14. O-O {[%emt 0:00:10]} Bxc3 {[%emt 0:00:36]} 15. bxc3 {[%emt 0:00:04]} Rb8 {[%emt 0:00:31]} 16. f4 {[%emt 0:00:32]} Ng6 {[%emt 0:00:06]} 17. Be1 {[%emt 0:00:16]} Re8 {[%emt 0:00:06]} 18. c4 {[%emt 0:00:04]} Ng4 {[%emt 0:00:14]} 19. Bc3 {[%emt 0:00:31]} Qh4 {[%emt 0:00:16]} 20. h3 {[%emt 0:00:04]} Ne3 {[%emt 0:00:02]} 21. Qd3 {[%emt 0:00:03]} Nxf1 {[%emt 0:00:05]} 22. Rxf1 {[%emt 0:00:02]} Qe7 {[%emt 0:00:02]} 23. Rf2 {[%emt 0:00:06]} Qe3 {[%emt 0:00:01]} 24. Qf5 {[%emt 0:00:06]} Qe4 {[%emt 0:00:06]} 25. Qg4 {[%emt 0:00:03]} Bxc4 {[%emt 0:00:02]} 26. Ng3 {[%emt 0:00:03]} Qb1+ {[%emt 0:00:03]} 27. Kh2 {[%emt 0:00:03]} Bxb3 {[%emt 0:00:02]} 28. axb3 {[%emt 0:00:01]} Rxb3 {[%emt 0:00:02]} 29. f5 {[%emt 0:00:06]} Rxc3 {[%emt 0:00:01]} 30. fxg6 {[%emt 0:00:01]} Qxg6 {[%emt 0:00:02]} 31. Qf4 {[%emt 0:00:01]} Qxg3+ {[%emt 0:00:04]} 32. Qxg3 {[%emt 0:00:01]} Rxg3 {[%emt 0:00:01]} 33. Kxg3 {[%emt 0:00:01]} Re5 {[%emt 0:00:01]} 34. Ra2 {[%emt 0:00:02]} Rxd5 {[%emt 0:00:01]} 35. Rxa7 {[%emt 0:00:00]} g6 {[%emt 0:00:01]} 0-1

[Event "RUS-ch Women Blitz 2019"]
[Site "Sochi"]
[Date "2019.10.17"]
[Round "14.7"]
[White "Guseva, Marina"]
[Black "Vasilevich, Tatjana"]
[Result "1-0"]
[ECO "E20"]
[WhiteElo "2366"]
[BlackElo "2360"]
[Annotator "NA"]
[PlyCount "114"]
[EventDate "2019.10.17"]
[EventType "swiss"]
[EventCountry "RUS"]
[SourceTitle "playchess.com"]
[Source "ChessBase"]
[SourceQuality "1"]
[TimeControl "180+2"]

1. d4 {[%emt 0:00:00]} Nf6 {[%emt 0:00:00]} 2. c4 {[%emt 0:00:00]} e6 {[%emt 0:00:00]} 3. Nc3 {[%emt 0:00:01]} Bb4 {[%emt 0:00:00]} 4. f3 {[%emt 0:00:01]} O-O {[%emt 0:00:10]} 5. a3 {[%emt 0:00:03]} Bxc3+ {[%emt 0:00:01]} 6. bxc3 {[%emt 0:00:02]} b6 {[%emt 0:00:03]} 7. e4 {[%emt 0:00:02]} Nc6 {[%emt 0:00:05]} 8. Bd3 {[%emt 0:00:02]} Ba6 {[%emt 0:00:02]} 9. Be3 {[%emt 0:00:09]} Na5 {[%emt 0:00:03]} 10. Qe2 {[%emt 0:00:31]} Ne8 {[%emt 0:00:07]} 11. e5 {[%emt 0:00:06]} d5 {[%emt 0:00:17]} 12. cxd5 {[%emt 0:00:12]} Bxd3 {[%emt 0:00:02]} 13. Qxd3 {[%emt 0:00:01]} Qxd5 {[%emt 0:00:41]} 14. Nh3 {[%emt 0:00:04]} Qc4 {[%emt 0:00:20]} 15. Qxc4 {[%emt 0:00:10]} Nxc4 {[%emt 0:00:01]} 16. Ke2 {[%emt 0:00:01]} c6 {[%emt 0:00:05]} 17. a4 {[%emt 0:00:03]} Nc7 {[%emt 0:00:05]} 18. Nf4 {[%emt 0:00:04]} Nd5 {[%emt 0:00:05]} 19. Bc1 {[%emt 0:00:58]} Nxf4+ {[%emt 0:00:17]} 20. Bxf4 {[%emt 0:00:02]} a6 {[%emt 0:00:22]} 21. Rhb1 {[%emt 0:00:09]} b5 {[%emt 0:00:01]} 22. Bc1 {[%emt 0:00:02]} f6 {[%emt 0:00:24]} 23. exf6 {[%emt 0:00:05]} gxf6 {[%emt 0:00:01]} 24. Ba3 {[%emt 0:00:08]} Rfe8 {[%emt 0:00:06]} 25. Bc5 {[%emt 0:00:05]} Kf7 {[%emt 0:00:03]} 26. Ra2 {[%emt 0:00:09]} Rg8 {[%emt 0:00:06]} 27. g3 {[%emt 0:00:02]} Rac8 {[%emt 0:00:16]} 28. axb5 {[%emt 0:00:04]} axb5 {[%emt 0:00:01]} 29. Ra7+ {[%emt 0:00:02]} Kg6 {[%emt 0:00:01]} 30. Rba1 {[%emt 0:00:05]} Rg7 {[%emt 0:00:02]} 31. g4 {[%emt 0:00:12]} Rxa7 {[%emt 0:00:03]} 32. Rxa7 {[%emt 0:00:02]} h5 {[%emt 0:00:02]} 33. gxh5+ {[%emt 0:00:17]} Kxh5 {[%emt 0:00:01]} 34. Re7 {[%emt 0:00:02]} e5 {[%emt 0:00:03]} 35. dxe5 {[%emt 0:00:02]} fxe5 {[%emt 0:00:01]} 36. Bf2 {[%emt 0:00:06]} Kg5 {[%emt 0:00:02]} 37. Bg3 {[%emt 0:00:02]} Kf6 {[%emt 0:00:02]} 38. Rh7 {[%emt 0:00:03]} c5 {[%emt 0:00:07]} 39. Rb7 {[%emt 0:00:02]} Nd6 {[%emt 0:00:01]} 40. Rb6 {[%emt 0:00:02]} Ke6 {[%emt 0:00:02]} 41. f4 {[%emt 0:00:01]} Kd5 {[%emt 0:00:06]} 42. fxe5 {[%emt 0:00:03]} Nc4 {[%emt 0:00:00]} 43. Rxb5 {[%emt 0:00:02]} Nxe5 {[%emt 0:00:05]} 44. c4+ {[%emt 0:00:06]} Kxc4 {[%emt 0:00:01]} 45. Rb7 {[%emt 0:00:01]} Re8 {[%emt 0:00:02]} 46. Kf1 {[%emt 0:00:02]} Nd3 {[%emt 0:00:01]} 47. Kg2 {[%emt 0:00:01]} Kc3 {[%emt 0:00:02]} 48. h4 {[%emt 0:00:02]} Rg8 {[%emt 0:00:02]} 49. Kh3 {[%emt 0:00:01]} Rh8 {[%emt 0:00:03]} 50. Kg4 {[%emt 0:00:04]} Rg8+ {[%emt 0:00:02]} 51. Kh3 {[%emt 0:00:01]} Rh8 {[%emt 0:00:00]} 52. Bd6 {[%emt 0:00:03]} c4 {[%emt 0:00:02]} 53. Be7 {[%emt 0:00:01]} Rh6 {[%emt 0:00:05]} 54. Bg5 {[%emt 0:00:01]} Re6 {[%emt 0:00:03]} 55. h5 {[%emt 0:00:02]} Nc5 {[%emt 0:00:05]} 56. Rc7 {[%emt 0:00:02]} Ne4 {[%emt 0:00:02]} 57. Bf4 {[%emt 0:00:02]} Kd3 {[%emt 0:00:02]} 1-0

[Event "RUS-ch Women Blitz 2019"]
[Site "Sochi"]
[Date "2019.10.17"]
[Round "14.8"]
[White "Yakimova, Mariya"]
[Black "Ambartsumova, Karina"]
[Result "0-1"]
[ECO "A41"]
[WhiteElo "2276"]
[BlackElo "2341"]
[Annotator "NA"]
[PlyCount "66"]
[EventDate "2019.10.17"]
[EventType "swiss"]
[EventCountry "RUS"]
[SourceTitle "playchess.com"]
[Source "ChessBase"]
[SourceQuality "1"]
[TimeControl "180+2"]

1. d4 {[%emt 0:00:00]} d6 {[%emt 0:00:00]} 2. Nf3 {[%emt 0:00:00]} Nd7 {[%emt 0:00:07]} 3. g3 {[%emt 0:00:04]} Ngf6 {[%emt 0:00:03]} 4. Bg2 {[%emt 0:00:01]} e5 {[%emt 0:00:03]} 5. dxe5 {[%emt 0:00:08]} dxe5 {[%emt 0:00:02]} 6. O-O {[%emt 0:00:03]} Be7 {[%emt 0:00:03]} 7. c4 {[%emt 0:00:10]} O-O {[%emt 0:00:05]} 8. Nc3 {[%emt 0:00:02]} c6 {[%emt 0:00:02]} 9. Qc2 {[%emt 0:00:03]} Qc7 {[%emt 0:00:06]} 10. Rd1 {[%emt 0:00:02]} a5 {[%emt 0:00:08]} 11. e4 {[%emt 0:00:04]} Nc5 {[%emt 0:00:10]} 12. h3 {[%emt 0:00:02]} Ne6 {[%emt 0:00:20]} 13. Be3 {[%emt 0:00:01]} Bc5 {[%emt 0:00:04]} 14. Bxc5 {[%emt 0:00:11]} Nxc5 {[%emt 0:00:01]} 15. b3 {[%emt 0:00:06]} h6 {[%emt 0:00:02]} 16. Rd2 {[%emt 0:00:06]} Be6 {[%emt 0:00:11]} 17. Rad1 {[%emt 0:00:01]} a4 {[%emt 0:00:06]} 18. b4 {[%emt 0:00:32]} Na6 {[%emt 0:00:05]} 19. b5 {[%emt 0:00:08]} Nc5 {[%emt 0:00:06]} 20. Bf1 {[%emt 0:00:05]} Nfd7 {[%emt 0:00:15]} 21. Rb1 {[%emt 0:00:15]} Nb6 {[%emt 0:00:06]} 22. Nd1 {[%emt 0:00:10]} f6 {[%emt 0:00:09]} 23. Ne3 {[%emt 0:00:01]} Rfd8 {[%emt 0:00:04]} 24. Rbd1 {[%emt 0:00:04]} Rxd2 {[%emt 0:00:06]} 25. Rxd2 {[%emt 0:00:04]} Rd8 {[%emt 0:00:01]} 26. Rxd8+ {[%emt 0:00:35]} Qxd8 {[%emt 0:00:01]} 27. Qd2 {[%emt 0:00:02]} Qxd2 {[%emt 0:00:04]} 28. Nxd2 {[%emt 0:00:02]} cxb5 {[%emt 0:00:01]} 29. cxb5 {[%emt 0:00:00]} Bxa2 {[%emt 0:00:01]} 30. Nf5 {[%emt 0:00:10]} Be6 {[%emt 0:00:07]} 31. Nd6 {[%emt 0:00:01]} a3 {[%emt 0:00:04]} 32. N6c4 {[%emt 0:00:12]} Nxc4 {[%emt 0:00:07]} 33. Nxc4 {[%emt 0:00:05]} a2 {[%emt 0:00:01]} 0-1